[Event "Titled Tuesday Blitz February 22 Early 2022"]
[White "Iljin, Timofey"]
[Black "Iskusnyh, Sergei"]
[WhiteFideId "14110180"]
[BlackFideId "4120027"]
[WhiteElo "2396"]
[BlackElo "2492"]
[Result "1-0"]
[Round "04"]
[TimeControl "180+1"]
[Date "2022.02.22"]
[WhiteClock "0:00:06"]
[BlackClock "0:00:01"]

1. f4 {[%clk 0:03:00]}  d5 {[%clk 0:02:58]} 2. Nf3 {[%clk 0:03:00]}  g6 {[%clk 0:02:57]} 3. g3 {[%clk 0:03:01]}  Bg7 {[%clk 0:02:57]} 4. Bg2 {[%clk 0:03:01]}  c6 {[%clk 0:02:57]} 5. O-O {[%clk 0:03:02]}  Qb6+ {[%clk 0:02:57]} 6. Kh1 {[%clk 0:03:02]}  Bxb2 {[%clk 0:02:56]} 7. Bxb2 {[%clk 0:03:03]}  Qxb2 {[%clk 0:02:55]} 8. Nc3 {[%clk 0:03:04]}  Nf6 {[%clk 0:02:52]} 9. Rb1 {[%clk 0:02:56]}  Qa3 {[%clk 0:02:50]} 10. Rb3 {[%clk 0:02:56]}  Qa5 {[%clk 0:02:49]} 11. d3 {[%clk 0:02:57]}  Nbd7 {[%clk 0:02:45]} 12. a4 {[%clk 0:02:44]}  Nc5 {[%clk 0:02:41]} 13. Ra3 {[%clk 0:02:43]}  O-O {[%clk 0:02:31]} 14. Ne5 {[%clk 0:02:42]}  Ng4 {[%clk 0:02:29]} 15. Nxg4 {[%clk 0:02:24]}  Bxg4 {[%clk 0:02:27]} 16. h3 {[%clk 0:02:24]}  Bd7 {[%clk 0:02:24]} 17. e4 {[%clk 0:02:22]}  dxe4 {[%clk 0:02:20]} 18. dxe4 {[%clk 0:02:23]}  Rad8 {[%clk 0:02:19]} 19. Qf3 {[%clk 0:02:10]}  Bc8 {[%clk 0:02:11]} 20. Raa1 {[%clk 0:02:04]}  Ne6 {[%clk 0:02:03]} 21. Nd1 {[%clk 0:01:12]}  Rd2 {[%clk 0:01:56]} 22. c3 {[%clk 0:01:03]}  Nc5 {[%clk 0:01:31]} 23. Rc1 {[%clk 0:00:42]}  Nd3 {[%clk 0:01:20]} 24. Rb1 {[%clk 0:00:38]}  Qc5 {[%clk 0:01:19]} 25. Ne3 {[%clk 0:00:32]}  Qxc3 {[%clk 0:01:02]} 26. f5 {[%clk 0:00:28]}  Ne5 {[%clk 0:01:00]} 27. Qf4 {[%clk 0:00:29]}  f6 {[%clk 0:00:56]} 28. Rbc1 {[%clk 0:00:20]}  Qd4 {[%clk 0:00:52]} 29. Ng4 {[%clk 0:00:14]}  g5 {[%clk 0:00:49]} 30. Qe3 {[%clk 0:00:02]}  Nxg4 {[%clk 0:00:48]} 31. Qxd4 {[%clk 0:00:03]}  Rxd4 {[%clk 0:00:47]} 32. hxg4 {[%clk 0:00:04]}  Rxa4 {[%clk 0:00:47]} 33. Rfd1 {[%clk 0:00:03]}  a5 {[%clk 0:00:40]} 34. Rc5 {[%clk 0:00:04]}  Ra3 {[%clk 0:00:38]} 35. Kh2 {[%clk 0:00:03]}  a4 {[%clk 0:00:37]} 36. e5 {[%clk 0:00:04]}  Re3 {[%clk 0:00:33]} 37. e6 {[%clk 0:00:03]}  a3 {[%clk 0:00:32]} 38. Ra5 {[%clk 0:00:02]}  b5 {[%clk 0:00:18]} 39. Ra7 {[%clk 0:00:02]}  b4 {[%clk 0:00:17]} 40. Bxc6 {[%clk 0:00:02]}  Re2+ {[%clk 0:00:15]} 41. Kh3 {[%clk 0:00:03]}  a2 {[%clk 0:00:14]} 42. Bd5 {[%clk 0:00:03]}  Rd8 {[%clk 0:00:12]} 43. Rxe7 {[%clk 0:00:03]}  a1=Q {[%clk 0:00:09]} 44. Rxa1 {[%clk 0:00:02]}  Rxd5 {[%clk 0:00:09]} 45. Ra8 {[%clk 0:00:03]}  Rc2 {[%clk 0:00:09]} 46. Re8+ {[%clk 0:00:03]}  Kg7 {[%clk 0:00:09]} 47. Raxc8 {[%clk 0:00:03]}  Rxc8 {[%clk 0:00:08]} 48. Rxc8 {[%clk 0:00:04]}  Re5 {[%clk 0:00:08]} 49. Rc7+ {[%clk 0:00:04]}  Kh6 {[%clk 0:00:08]} 50. Rb7 {[%clk 0:00:04]}  Re4 {[%clk 0:00:07]} 51. Rf7 {[%clk 0:00:04]}  b3 {[%clk 0:00:06]} 52. Rxf6+ {[%clk 0:00:05]}  Kg7 {[%clk 0:00:06]} 53. Rf7+ {[%clk 0:00:06]}  Kh6 {[%clk 0:00:06]} 54. Rb7 {[%clk 0:00:07]}  Re3 {[%clk 0:00:05]} 55. Kg2 {[%clk 0:00:07]}  Rc3 {[%clk 0:00:04]} 56. Kf2 {[%clk 0:00:07]}  Rc2+ {[%clk 0:00:03]} 57. Ke3 {[%clk 0:00:08]}  b2 {[%clk 0:00:03]} 58. f6 {[%clk 0:00:08]}  Rc1 {[%clk 0:00:02]} 59. f7 {[%clk 0:00:06]}  Re1+ {[%clk 0:00:01]} 60. Kf2 {[%clk 0:00:06]} 1-0


[Site "https://www.chess.com"]

[Event "Titled Tuesday Blitz February 22 Early 2022"]
[White "Jodorcovsky Werjivker, Paulo"]
[Black "Lorente Serrano, Rosa Adela"]
[WhiteFideId "3700305"]
[BlackFideId "32091982"]
[WhiteElo "2075"]
[BlackElo "1820"]
[Result "1-0"]
[Round "04"]
[TimeControl "180+1"]
[Date "2022.02.22"]
[WhiteClock "0:00:17"]
[BlackClock "0:00:07"]

1. d4 {[%clk 0:03:00]}  Nf6 {[%clk 0:02:55]} 2. c4 {[%clk 0:03:00]}  e6 {[%clk 0:02:53]} 3. Nc3 {[%clk 0:03:00]}  Bb4 {[%clk 0:02:53]} 4. f3 {[%clk 0:03:00]}  c5 {[%clk 0:02:48]} 5. d5 {[%clk 0:02:59]}  d6 {[%clk 0:02:27]} 6. e4 {[%clk 0:02:59]}  exd5 {[%clk 0:02:26]} 7. cxd5 {[%clk 0:02:58]}  O-O {[%clk 0:02:25]} 8. Ne2 {[%clk 0:02:40]}  Nbd7 {[%clk 0:02:19]} 9. Bf4 {[%clk 0:02:39]}  c4 {[%clk 0:01:59]} 10. Ng3 {[%clk 0:02:28]}  Re8 {[%clk 0:01:52]} 11. Bxc4 {[%clk 0:02:20]}  Qc7 {[%clk 0:01:44]} 12. Qe2 {[%clk 0:02:16]}  Bxc3+ {[%clk 0:01:34]} 13. bxc3 {[%clk 0:02:16]}  b5 {[%clk 0:01:34]} 14. Bxb5 {[%clk 0:02:10]}  Qxc3+ {[%clk 0:01:33]} 15. Kf2 {[%clk 0:02:10]}  a6 {[%clk 0:01:23]} 16. Rhc1 {[%clk 0:02:04]}  Qd4+ {[%clk 0:01:18]} 17. Be3 {[%clk 0:02:03]}  Qe5 {[%clk 0:01:18]} 18. Bc6 {[%clk 0:01:51]}  Rb8 {[%clk 0:01:15]} 19. Nf5 {[%clk 0:01:44]}  Rb2 {[%clk 0:01:09]} 20. Bd2 {[%clk 0:01:35]}  Qxh2 {[%clk 0:00:28]} 21. Rh1 {[%clk 0:01:13]}  Qe5 {[%clk 0:00:27]} 22. Ne3 {[%clk 0:01:05]}  Qd4 {[%clk 0:00:19]} 23. Rhd1 {[%clk 0:00:40]}  Ne5 {[%clk 0:00:15]} 24. Kf1 {[%clk 0:00:39]}  Bd7 {[%clk 0:00:13]} 25. Qe1 {[%clk 0:00:27]}  Nd3 {[%clk 0:00:11]} 26. Bc3 {[%clk 0:00:21]}  Bxc6 {[%clk 0:00:10]} 27. Bxd4 {[%clk 0:00:20]}  Nxe1 {[%clk 0:00:10]} 28. dxc6 {[%clk 0:00:20]}  Nc2 {[%clk 0:00:07]} 29. Nxc2 {[%clk 0:00:19]}  Rxc2 {[%clk 0:00:07]} 30. Rac1 {[%clk 0:00:18]}  Rxa2 {[%clk 0:00:07]} 31. c7 {[%clk 0:00:16]}  Rc8 {[%clk 0:00:07]} 32. Bxf6 {[%clk 0:00:17]}  gxf6 {[%clk 0:00:07]} 33. Rxd6 {[%clk 0:00:17]} 1-0


[Site "https://www.chess.com"]

[Event "Titled Tuesday Blitz February 22 Early 2022"]
[White "Jumabayev, Rinat"]
[Black "Gabrielian, Artur"]
[WhiteFideId "13702661"]
[BlackFideId "4131002"]
[WhiteElo "2561"]
[BlackElo "2440"]
[Result "1-0"]
[Round "04"]
[TimeControl "180+1"]
[Date "2022.02.22"]
[WhiteClock "0:00:08"]
[BlackClock "0:00:15"]

1. d4 {[%clk 0:03:00]}  Nf6 {[%clk 0:02:56]} 2. Nf3 {[%clk 0:03:00]}  g6 {[%clk 0:02:54]} 3. Bf4 {[%clk 0:02:59]}  Bg7 {[%clk 0:02:54]} 4. e3 {[%clk 0:03:00]}  O-O {[%clk 0:02:54]} 5. Be2 {[%clk 0:03:00]}  d6 {[%clk 0:02:54]} 6. O-O {[%clk 0:02:58]}  c5 {[%clk 0:02:54]} 7. c3 {[%clk 0:02:54]}  Qb6 {[%clk 0:02:51]} 8. Qb3 {[%clk 0:02:17]}  Be6 {[%clk 0:02:48]} 9. Qxb6 {[%clk 0:01:46]}  axb6 {[%clk 0:02:49]} 10. a3 {[%clk 0:01:43]}  Nh5 {[%clk 0:02:40]} 11. Bg5 {[%clk 0:01:43]}  Re8 {[%clk 0:02:33]} 12. Ne1 {[%clk 0:01:27]}  h6 {[%clk 0:02:23]} 13. Bh4 {[%clk 0:01:25]}  Nf6 {[%clk 0:02:22]} 14. Nd2 {[%clk 0:01:25]}  Nc6 {[%clk 0:02:17]} 15. f3 {[%clk 0:01:09]}  Nd5 {[%clk 0:02:05]} 16. Bf2 {[%clk 0:01:07]}  Na5 {[%clk 0:02:03]} 17. Nd3 {[%clk 0:01:03]}  c4 {[%clk 0:01:53]} 18. Nb4 {[%clk 0:00:53]}  b5 {[%clk 0:01:42]} 19. Nxd5 {[%clk 0:00:46]}  Bxd5 {[%clk 0:01:42]} 20. e4 {[%clk 0:00:46]}  Bc6 {[%clk 0:01:36]} 21. f4 {[%clk 0:00:45]}  d5 {[%clk 0:01:31]} 22. Bf3 {[%clk 0:00:39]}  e6 {[%clk 0:01:27]} 23. Rfe1 {[%clk 0:00:38]}  f5 {[%clk 0:01:21]} 24. exd5 {[%clk 0:00:24]}  Bxd5 {[%clk 0:01:21]} 25. Rad1 {[%clk 0:00:22]}  Nc6 {[%clk 0:01:18]} 26. Bh4 {[%clk 0:00:21]}  Kf7 {[%clk 0:01:13]} 27. Kf1 {[%clk 0:00:20]}  Bf6 {[%clk 0:01:13]} 28. Bxf6 {[%clk 0:00:20]}  Kxf6 {[%clk 0:01:14]} 29. Kf2 {[%clk 0:00:20]}  g5 {[%clk 0:01:14]} 30. g3 {[%clk 0:00:17]}  gxf4 {[%clk 0:01:02]} 31. gxf4 {[%clk 0:00:18]}  Ne7 {[%clk 0:01:03]} 32. Re5 {[%clk 0:00:16]}  Ng6 {[%clk 0:00:49]} 33. Bxd5 {[%clk 0:00:08]}  exd5 {[%clk 0:00:49]} 34. Rxd5 {[%clk 0:00:04]}  Ra6 {[%clk 0:00:45]} 35. Kf3 {[%clk 0:00:03]}  Rae6 {[%clk 0:00:43]} 36. Nf1 {[%clk 0:00:03]}  Re4 {[%clk 0:00:30]} 37. Ng3 {[%clk 0:00:03]}  Re3+ {[%clk 0:00:21]} 38. Kf2 {[%clk 0:00:04]}  Nh4 {[%clk 0:00:20]} 39. Re5 {[%clk 0:00:04]}  R8xe5 {[%clk 0:00:15]} 40. fxe5+ {[%clk 0:00:03]}  Kg5 {[%clk 0:00:15]} 41. Kxe3 {[%clk 0:00:03]}  f4+ {[%clk 0:00:12]} 42. Kf2 {[%clk 0:00:04]}  fxg3+ {[%clk 0:00:12]} 43. hxg3 {[%clk 0:00:04]}  Nf5 {[%clk 0:00:13]} 44. e6 {[%clk 0:00:05]}  Kf6 {[%clk 0:00:13]} 45. Re1 {[%clk 0:00:05]}  Nd6 {[%clk 0:00:14]} 46. Re5 {[%clk 0:00:05]}  Ke7 {[%clk 0:00:14]} 47. Kf3 {[%clk 0:00:05]}  h5 {[%clk 0:00:15]} 48. d5 {[%clk 0:00:05]}  Kf6 {[%clk 0:00:14]} 49. Rxh5 {[%clk 0:00:06]}  Ke7 {[%clk 0:00:13]} 50. Rh7+ {[%clk 0:00:06]}  Kf6 {[%clk 0:00:14]} 51. Rd7 {[%clk 0:00:07]}  Nf5 {[%clk 0:00:14]} 52. g4 {[%clk 0:00:07]}  Nh4+ {[%clk 0:00:14]} 53. Ke4 {[%clk 0:00:08]}  Ng6 {[%clk 0:00:15]} 54. Rxb7 {[%clk 0:00:08]}  Nh4 {[%clk 0:00:15]} 55. Rf7+ {[%clk 0:00:08]}  Kg6 {[%clk 0:00:15]} 56. Rf2 {[%clk 0:00:08]} 1-0


[Site "https://www.chess.com"]

[Event "Titled Tuesday Blitz February 22 Early 2022"]
[White "Kazancev, Valerij M"]
[Black "Prohorov, Olexandr"]
[WhiteFideId "4179609"]
[BlackFideId "14105578"]
[WhiteElo "2461"]
[BlackElo "1993"]
[Result "1-0"]
[Round "04"]
[TimeControl "180+1"]
[Date "2022.02.22"]
[WhiteClock "0:00:18"]
[BlackClock "0:00:03"]

1. c4 {[%clk 0:03:00]}  g6 {[%clk 0:02:59]} 2. h4 {[%clk 0:03:00]}  Nf6 {[%clk 0:02:51]} 3. Nc3 {[%clk 0:03:00]}  c5 {[%clk 0:02:51]} 4. g3 {[%clk 0:03:00]}  Nc6 {[%clk 0:02:49]} 5. Bg2 {[%clk 0:03:00]}  Bg7 {[%clk 0:02:49]} 6. Nh3 {[%clk 0:03:01]}  e5 {[%clk 0:02:26]} 7. a3 {[%clk 0:03:00]}  d6 {[%clk 0:02:22]} 8. Rb1 {[%clk 0:03:00]}  a5 {[%clk 0:02:23]} 9. d3 {[%clk 0:03:00]}  Be6 {[%clk 0:02:14]} 10. Ng5 {[%clk 0:02:59]}  Bf5 {[%clk 0:02:04]} 11. Bd2 {[%clk 0:02:21]}  Rb8 {[%clk 0:02:03]} 12. Qc1 {[%clk 0:02:19]}  Qd7 {[%clk 0:01:48]} 13. b3 {[%clk 0:02:07]}  O-O {[%clk 0:01:25]} 14. Nd5 {[%clk 0:01:46]}  Ne7 {[%clk 0:01:13]} 15. Nxf6+ {[%clk 0:01:36]}  Bxf6 {[%clk 0:01:13]} 16. h5 {[%clk 0:01:37]}  Bg7 {[%clk 0:01:03]} 17. hxg6 {[%clk 0:01:32]}  hxg6 {[%clk 0:01:03]} 18. b4 {[%clk 0:01:24]}  axb4 {[%clk 0:01:03]} 19. axb4 {[%clk 0:01:24]}  cxb4 {[%clk 0:00:57]} 20. Rxb4 {[%clk 0:01:20]}  b5 {[%clk 0:00:55]} 21. Qb1 {[%clk 0:01:16]}  Qa7 {[%clk 0:00:26]} 22. cxb5 {[%clk 0:01:12]}  d5 {[%clk 0:00:20]} 23. O-O {[%clk 0:01:09]}  Rfc8 {[%clk 0:00:12]} 24. e4 {[%clk 0:00:52]}  dxe4 {[%clk 0:00:11]} 25. dxe4 {[%clk 0:00:51]}  Bd7 {[%clk 0:00:12]} 26. Qb3 {[%clk 0:00:45]}  Be8 {[%clk 0:00:09]} 27. Bh3 {[%clk 0:00:37]}  Rd8 {[%clk 0:00:08]} 28. Be3 {[%clk 0:00:37]}  Qb7 {[%clk 0:00:09]} 29. Rb1 {[%clk 0:00:34]}  Bf8 {[%clk 0:00:09]} 30. Qb2 {[%clk 0:00:22]}  Nc8 {[%clk 0:00:08]} 31. Rb3 {[%clk 0:00:19]}  Bg7 {[%clk 0:00:08]} 32. Qe2 {[%clk 0:00:15]}  Nb6 {[%clk 0:00:08]} 33. Qg4 {[%clk 0:00:15]}  Bd7 {[%clk 0:00:08]} 34. Qh4 {[%clk 0:00:15]}  Bxh3 {[%clk 0:00:08]} 35. Qh7+ {[%clk 0:00:15]}  Kf8 {[%clk 0:00:08]} 36. Qxh3 {[%clk 0:00:16]}  Qd7 {[%clk 0:00:08]} 37. Bc5+ {[%clk 0:00:16]}  Ke8 {[%clk 0:00:08]} 38. Qh7 {[%clk 0:00:16]}  Qd2 {[%clk 0:00:05]} 39. Qg8+ {[%clk 0:00:16]}  Kd7 {[%clk 0:00:05]} 40. Qxf7+ {[%clk 0:00:16]}  Kc8 {[%clk 0:00:06]} 41. Qxg7 {[%clk 0:00:16]}  Qxg5 {[%clk 0:00:04]} 42. Bxb6 {[%clk 0:00:17]}  Rxb6 {[%clk 0:00:03]} 43. Rc3+ {[%clk 0:00:17]}  Kb8 {[%clk 0:00:04]} 44. Qc7+ {[%clk 0:00:17]}  Ka8 {[%clk 0:00:04]} 45. Qxb6 {[%clk 0:00:18]}  Qd2 {[%clk 0:00:03]} 46. Ra3+ {[%clk 0:00:18]} 1-0


[Site "https://www.chess.com"]

[Event "Titled Tuesday Blitz February 22 Early 2022"]
[White "Kim, Sergey"]
[Black "Zlatin, Alexander"]
[WhiteFideId "13700570"]
[BlackFideId "2810549"]
[WhiteElo "2632"]
[BlackElo "2228"]
[Result "1-0"]
[Round "04"]
[TimeControl "180+1"]
[Date "2022.02.22"]
[WhiteClock "0:00:51"]
[BlackClock "0:00:02"]

1. d4 {[%clk 0:03:00]}  d5 {[%clk 0:02:59]} 2. c4 {[%clk 0:03:00]}  e6 {[%clk 0:02:58]} 3. Nc3 {[%clk 0:03:00]}  c5 {[%clk 0:02:58]} 4. e3 {[%clk 0:03:00]}  Nf6 {[%clk 0:02:57]} 5. Nf3 {[%clk 0:03:00]}  Nc6 {[%clk 0:02:57]} 6. a3 {[%clk 0:03:00]}  Be7 {[%clk 0:02:57]} 7. Bd3 {[%clk 0:03:00]}  O-O {[%clk 0:02:56]} 8. O-O {[%clk 0:02:59]}  a6 {[%clk 0:02:56]} 9. b3 {[%clk 0:02:58]}  dxc4 {[%clk 0:02:55]} 10. bxc4 {[%clk 0:02:51]}  h6 {[%clk 0:02:26]} 11. d5 {[%clk 0:02:43]}  Na5 {[%clk 0:02:16]} 12. e4 {[%clk 0:02:40]}  exd5 {[%clk 0:02:11]} 13. cxd5 {[%clk 0:02:39]}  c4 {[%clk 0:02:04]} 14. Bc2 {[%clk 0:02:37]}  Bc5 {[%clk 0:01:36]} 15. e5 {[%clk 0:02:31]}  Ne8 {[%clk 0:01:20]} 16. Ne4 {[%clk 0:02:26]}  Ba7 {[%clk 0:01:18]} 17. h3 {[%clk 0:02:21]}  b5 {[%clk 0:01:15]} 18. Bf4 {[%clk 0:02:11]}  Nb7 {[%clk 0:01:08]} 19. Qd2 {[%clk 0:02:08]}  Nc5 {[%clk 0:01:07]} 20. Rad1 {[%clk 0:01:57]}  Nxe4 {[%clk 0:00:56]} 21. Bxe4 {[%clk 0:01:56]}  f5 {[%clk 0:00:57]} 22. Bc2 {[%clk 0:01:44]}  Bb7 {[%clk 0:00:57]} 23. Be3 {[%clk 0:01:33]}  Bxe3 {[%clk 0:00:43]} 24. fxe3 {[%clk 0:01:33]}  Nc7 {[%clk 0:00:44]} 25. d6 {[%clk 0:01:31]}  Nd5 {[%clk 0:00:40]} 26. Nd4 {[%clk 0:01:29]}  Qg5 {[%clk 0:00:25]} 27. Nxf5 {[%clk 0:01:24]}  c3 {[%clk 0:00:16]} 28. Qd3 {[%clk 0:01:11]}  Nf6 {[%clk 0:00:03]} 29. Ne7+ {[%clk 0:00:59]}  Kh8 {[%clk 0:00:02]} 30. Qe2 {[%clk 0:00:55]}  Be4 {[%clk 0:00:02]} 31. exf6 {[%clk 0:00:51]} 1-0


[Site "https://www.chess.com"]

[Event "Titled Tuesday Blitz February 22 Early 2022"]
[White "Kislov, Oleg"]
[Black "Cabarkapa, Novak"]
[WhiteFideId "13503774"]
[BlackFideId "943746"]
[WhiteElo "2252"]
[BlackElo "2443"]
[Result "1-0"]
[Round "04"]
[TimeControl "180+1"]
[Date "2022.02.22"]
[WhiteClock "0:01:15"]
[BlackClock "0:01:44"]

1. e4 {[%clk 0:03:00]}  h5 {[%clk 0:02:55]} 2. d4 {[%clk 0:02:58]}  h4 {[%clk 0:02:55]} 3. h3 {[%clk 0:02:56]}  c6 {[%clk 0:02:55]} 4. Nc3 {[%clk 0:02:50]}  d5 {[%clk 0:02:55]} 5. Nf3 {[%clk 0:02:48]}  dxe4 {[%clk 0:02:54]} 6. Nxe4 {[%clk 0:02:48]}  Nf6 {[%clk 0:02:55]} 7. Neg5 {[%clk 0:02:40]}  Bf5 {[%clk 0:02:51]} 8. Bc4 {[%clk 0:02:37]}  e6 {[%clk 0:02:51]} 9. Ne5 {[%clk 0:02:37]}  Nd5 {[%clk 0:02:11]} 10. Ngxf7 {[%clk 0:02:30]}  Qa5+ {[%clk 0:02:07]} 11. Bd2 {[%clk 0:02:29]}  Qa4 {[%clk 0:02:07]} 12. b3 {[%clk 0:02:25]}  Qa3 {[%clk 0:02:06]} 13. Nxh8 {[%clk 0:02:22]}  Qb2 {[%clk 0:02:06]} 14. O-O {[%clk 0:02:16]}  Qxd4 {[%clk 0:02:05]} 15. Qh5+ {[%clk 0:02:12]}  Kd8 {[%clk 0:02:01]} 16. Bg5+ {[%clk 0:02:08]}  Kc7 {[%clk 0:02:01]} 17. Bxd5 {[%clk 0:01:51]}  Qxe5 {[%clk 0:01:57]} 18. Qf7+ {[%clk 0:01:48]}  Nd7 {[%clk 0:01:55]} 19. Bf3 {[%clk 0:01:41]}  Bd6 {[%clk 0:01:54]} 20. Rfd1 {[%clk 0:01:25]}  Rxh8 {[%clk 0:01:47]} 21. Rxd6 {[%clk 0:01:15]}  Qxd6 {[%clk 0:01:44]} 22. Rd1 {[%clk 0:01:15]} 1-0


[Site "https://www.chess.com"]

[Event "Titled Tuesday Blitz February 22 Early 2022"]
[White "Kornyukov, Alexey"]
[Black "Medeiros Jr, Francisco De Assis"]
[WhiteFideId "4150457"]
[BlackFideId "2114267"]
[WhiteElo "2303"]
[BlackElo "1998"]
[Result "0-1"]
[Round "04"]
[TimeControl "180+1"]
[Date "2022.02.22"]
[WhiteClock "0:01:35"]
[BlackClock "0:00:43"]

1. e4 {[%clk 0:03:00]}  c6 {[%clk 0:02:52]} 2. d4 {[%clk 0:03:00]}  d5 {[%clk 0:02:53]} 3. Nc3 {[%clk 0:03:00]}  dxe4 {[%clk 0:02:52]} 4. Nxe4 {[%clk 0:03:00]}  Nf6 {[%clk 0:02:53]} 5. Nxf6+ {[%clk 0:02:59]}  exf6 {[%clk 0:02:52]} 6. Nf3 {[%clk 0:02:59]}  Bd6 {[%clk 0:02:51]} 7. Bd3 {[%clk 0:02:58]}  O-O {[%clk 0:02:51]} 8. O-O {[%clk 0:02:57]}  Bg4 {[%clk 0:02:49]} 9. h3 {[%clk 0:02:55]}  Bh5 {[%clk 0:02:49]} 10. c3 {[%clk 0:02:52]}  Nd7 {[%clk 0:02:46]} 11. Qc2 {[%clk 0:02:51]}  Bg6 {[%clk 0:02:46]} 12. Bxg6 {[%clk 0:02:50]}  hxg6 {[%clk 0:02:47]} 13. Be3 {[%clk 0:02:48]}  Qc7 {[%clk 0:02:40]} 14. c4 {[%clk 0:02:47]}  f5 {[%clk 0:02:32]} 15. c5 {[%clk 0:02:45]}  Be7 {[%clk 0:02:31]} 16. Qd2 {[%clk 0:02:39]}  Nf6 {[%clk 0:02:29]} 17. Bf4 {[%clk 0:02:38]}  Qd8 {[%clk 0:02:18]} 18. Rfe1 {[%clk 0:02:35]}  Nd5 {[%clk 0:02:17]} 19. Bg3 {[%clk 0:02:32]}  Bf6 {[%clk 0:02:18]} 20. Rad1 {[%clk 0:02:27]}  Re8 {[%clk 0:02:16]} 21. Be5 {[%clk 0:02:26]}  Qd7 {[%clk 0:02:14]} 22. Bxf6 {[%clk 0:02:25]}  gxf6 {[%clk 0:02:15]} 23. h4 {[%clk 0:02:22]}  Kg7 {[%clk 0:02:13]} 24. h5 {[%clk 0:02:21]}  Rh8 {[%clk 0:02:10]} 25. hxg6 {[%clk 0:02:19]}  fxg6 {[%clk 0:02:11]} 26. Qe2 {[%clk 0:02:14]}  Rae8 {[%clk 0:02:08]} 27. Qc4 {[%clk 0:02:12]}  Re4 {[%clk 0:02:03]} 28. Rxe4 {[%clk 0:02:10]}  fxe4 {[%clk 0:02:03]} 29. Nd2 {[%clk 0:02:08]}  Qg4 {[%clk 0:01:58]} 30. f3 {[%clk 0:02:00]}  Qh4 {[%clk 0:01:46]} 31. Nxe4 {[%clk 0:01:44]}  Qh1+ {[%clk 0:01:42]} 32. Kf2 {[%clk 0:01:43]}  Qxd1 {[%clk 0:01:39]} 33. Ng3 {[%clk 0:01:37]}  Qd2+ {[%clk 0:01:36]} 34. Kg1 {[%clk 0:01:36]}  Qxg2+ {[%clk 0:00:42]} 35. Kxg2 {[%clk 0:01:35]}  Ne3+ {[%clk 0:00:42]} 36. Kf2 {[%clk 0:01:35]}  Nxc4 {[%clk 0:00:43]} 0-1


[Site "https://www.chess.com"]

[Event "Titled Tuesday Blitz February 22 Early 2022"]
[White "Kovalenko, Igor"]
[Black "Paravyan, David"]
[WhiteFideId "14117908"]
[BlackFideId "4194985"]
[WhiteElo "2560"]
[BlackElo "2569"]
[Result "1/2-1/2"]
[Round "04"]
[TimeControl "180+1"]
[Date "2022.02.22"]
[WhiteClock "0:00:02"]
[BlackClock "0:00:03"]

1. d4 {[%clk 0:02:46]}  Nf6 {[%clk 0:02:59]} 2. c4 {[%clk 0:02:46]}  g6 {[%clk 0:02:59]} 3. Nc3 {[%clk 0:02:46]}  d5 {[%clk 0:03:00]} 4. Bg5 {[%clk 0:02:45]}  Ne4 {[%clk 0:02:59]} 5. Bf4 {[%clk 0:02:45]}  Nxc3 {[%clk 0:02:58]} 6. bxc3 {[%clk 0:02:46]}  c5 {[%clk 0:02:50]} 7. e3 {[%clk 0:02:46]}  Bg7 {[%clk 0:02:48]} 8. cxd5 {[%clk 0:02:46]}  Qxd5 {[%clk 0:02:46]} 9. Qb3 {[%clk 0:02:46]}  Be6 {[%clk 0:02:27]} 10. Nf3 {[%clk 0:01:11]}  O-O {[%clk 0:02:24]} 11. Qxd5 {[%clk 0:01:09]}  Bxd5 {[%clk 0:02:25]} 12. Be2 {[%clk 0:01:08]}  Nc6 {[%clk 0:02:21]} 13. O-O {[%clk 0:01:07]}  Rfe8 {[%clk 0:02:16]} 14. Bg3 {[%clk 0:00:59]}  cxd4 {[%clk 0:02:13]} 15. cxd4 {[%clk 0:01:00]}  e5 {[%clk 0:02:14]} 16. dxe5 {[%clk 0:00:57]}  Nxe5 {[%clk 0:02:15]} 17. Nxe5 {[%clk 0:00:55]}  Bxe5 {[%clk 0:02:15]} 18. Bxe5 {[%clk 0:00:55]}  Rxe5 {[%clk 0:02:15]} 19. Rfc1 {[%clk 0:00:56]}  Rd8 {[%clk 0:02:11]} 20. Rc5 {[%clk 0:00:48]}  Re7 {[%clk 0:01:55]} 21. a4 {[%clk 0:00:47]}  Bc6 {[%clk 0:01:49]} 22. Bb5 {[%clk 0:00:47]}  Red7 {[%clk 0:01:39]} 23. h4 {[%clk 0:00:44]}  Rd1+ {[%clk 0:01:35]} 24. Rxd1 {[%clk 0:00:43]}  Rxd1+ {[%clk 0:01:36]} 25. Kh2 {[%clk 0:00:44]}  Rd5 {[%clk 0:01:36]} 26. Rxd5 {[%clk 0:00:39]}  Bxd5 {[%clk 0:01:37]} 27. a5 {[%clk 0:00:33]}  Kf8 {[%clk 0:01:35]} 28. Kg3 {[%clk 0:00:32]}  Ke7 {[%clk 0:01:36]} 29. f3 {[%clk 0:00:33]}  Kd6 {[%clk 0:01:35]} 30. Kf4 {[%clk 0:00:32]}  Kc5 {[%clk 0:01:32]} 31. Be8 {[%clk 0:00:20]}  Kb4 {[%clk 0:01:31]} 32. Ke5 {[%clk 0:00:20]}  Bc4 {[%clk 0:01:29]} 33. Kf6 {[%clk 0:00:19]}  Kxa5 {[%clk 0:01:29]} 34. e4 {[%clk 0:00:16]}  b5 {[%clk 0:01:29]} 35. e5 {[%clk 0:00:17]}  b4 {[%clk 0:01:12]} 36. Bxf7 {[%clk 0:00:17]}  Bxf7 {[%clk 0:01:07]} 37. Kxf7 {[%clk 0:00:18]}  b3 {[%clk 0:01:07]} 38. e6 {[%clk 0:00:18]}  b2 {[%clk 0:01:08]} 39. e7 {[%clk 0:00:19]}  b1=Q {[%clk 0:01:09]} 40. e8=Q {[%clk 0:00:19]}  Qa2+ {[%clk 0:01:02]} 41. Kg7 {[%clk 0:00:19]}  Qxg2 {[%clk 0:01:02]} 42. Qe5+ {[%clk 0:00:14]}  Kb6 {[%clk 0:00:56]} 43. Qe3+ {[%clk 0:00:14]}  Ka6 {[%clk 0:00:27]} 44. Kxh7 {[%clk 0:00:14]}  Qg3 {[%clk 0:00:26]} 45. Qe4 {[%clk 0:00:12]}  Ka5 {[%clk 0:00:26]} 46. Qd5+ {[%clk 0:00:09]}  Kb4 {[%clk 0:00:24]} 47. Qd4+ {[%clk 0:00:09]}  Kb5 {[%clk 0:00:22]} 48. Qxa7 {[%clk 0:00:08]}  Qxh4+ {[%clk 0:00:22]} 49. Kg7 {[%clk 0:00:08]}  g5 {[%clk 0:00:16]} 50. Kg6 {[%clk 0:00:06]}  Kc4 {[%clk 0:00:16]} 51. Qa4+ {[%clk 0:00:04]}  Kd3 {[%clk 0:00:13]} 52. Qg4 {[%clk 0:00:03]}  Ke3 {[%clk 0:00:10]} 53. Kf5 {[%clk 0:00:03]}  Kf2 {[%clk 0:00:06]} 54. Qe4 {[%clk 0:00:02]}  Kg3 {[%clk 0:00:05]} 55. Qe3 {[%clk 0:00:01]}  Kg2 {[%clk 0:00:02]} 56. Qxg5+ {[%clk 0:00:01]}  Qxg5+ {[%clk 0:00:03]} 57. Kxg5 {[%clk 0:00:02]}  Kxf3 {[%clk 0:00:03]} 1/2-1/2


[Site "https://www.chess.com"]